fUST/lending_fUST_20250323
["ID","MTS","AMOUNT","RATE_DAILY","PERIOD"]
[356568910,1742691032466,-1313.51014096,0.000259,4]
[356568911,1742691032475,-5000.0,0.00026,2]
[356568912,1742691032485,-227.26477256,0.00026014,2]
[356568913,1742691032494,-174.03591202,0.00026014,2]
[356568914,1742691032503,-5000.0,0.00026022,2]
[356568915,1742691032512,-245.47540276,0.00026114,2]
[356568916,1742691032522,-610.39825998,0.00026114,2]
[356568917,1742691032531,-306.24870908,0.00026114,2]
[356568918,1742691032540,-611.58865117,0.00026114,2]
[356568919,1742691032550,-610.39825998,0.00026114,2]
[356568920,1742691032559,-610.39825998,0.00026114,2]
[356568921,1742691032568,-610.39825998,0.00026114,2]
[356568922,1742691032577,-610.39825998,0.00026114,2]
[356568923,1742691032586,-610.39825998,0.00026114,2]
[356568924,1742691032595,-610.39825998,0.00026114,2]
[356568925,1742691032604,-610.39825998,0.00026114,2]
[356568926,1742691032613,-610.39825998,0.00026114,2]
[356568927,1742691032622,-610.39825998,0.00026114,2]
[356568928,1742691032631,-610.39825998,0.00026114,2]
[356568929,1742691032640,-610.39825998,0.00026114,2]
[356568930,1742691032650,-610.39825998,0.00026114,2]
[356568931,1742691032659,-610.39825998,0.00026114,2]
[356568932,1742691032673,-610.39825998,0.00026114,2]
[356568933,1742691032683,-610.39825998,0.00026114,2]
[356568934,1742691032692,-610.39825998,0.00026114,2]
[356568935,1742691032702,-610.39825998,0.00026114,2]
[356568936,1742691032711,-610.39825998,0.00026114,2]
[356568937,1742691032720,-610.39825998,0.00026114,2]
[356568938,1742691032730,-610.39825998,0.00026114,2]
[356568939,1742691032739,-610.39825998,0.00026114,2]
[356568940,1742691032750,-610.39825998,0.00026114,2]
[356568941,1742691032760,-610.39825998,0.00026114,2]
[356568942,1742691032769,-610.39825998,0.00026114,2]
[356568943,1742691032778,-610.39825998,0.00026114,2]
[356568944,1742691032787,-610.39825998,0.00026114,2]
[356568945,1742691032796,-610.39825998,0.00026114,2]
[356568946,1742691032805,-610.39825998,0.00026114,2]
[356568947,1742691032815,-610.39825998,0.00026114,2]
[356568948,1742691032824,-610.39825998,0.00026114,2]
[356568949,1742691032834,-610.39825998,0.00026114,2]
[356568950,1742691032845,-610.39825998,0.00026114,2]
[356568951,1742691032855,-610.39825998,0.00026114,2]
[356568952,1742691032865,-610.39825998,0.00026114,2]
[356568953,1742691032876,-610.39825998,0.00026114,2]
[356568954,1742691032886,-610.39825998,0.00026114,2]
[356568955,1742691032896,-610.39825998,0.00026114,2]
[356568956,1742691032906,-610.39825998,0.00026114,2]
[356568957,1742691032916,-610.39825998,0.00026114,2]
[356568958,1742691032925,-610.39825998,0.00026114,2]
[356568959,1742691032936,-610.39825998,0.00026114,2]
[356568960,1742691032945,-610.39825998,0.00026114,2]
[356568961,1742691032955,-610.39825998,0.00026114,2]
[356568962,1742691032965,-610.39825998,0.00026114,2]
[356568963,1742691032975,-610.39825998,0.00026114,2]
[356568964,1742691032984,-610.39825998,0.00026114,2]
[356568965,1742691032994,-610.39825998,0.00026114,2]
[356568966,1742691033003,-610.39825998,0.00026114,2]
[356568967,1742691033013,-610.39825998,0.00026114,2]
[356568968,1742691033022,-610.39825998,0.00026114,2]
[356568969,1742691033031,-610.39825998,0.00026114,2]
[356568970,1742691033041,-610.39825998,0.00026114,2]
[356568971,1742691033050,-610.39825998,0.00026114,2]
[356568972,1742691033059,-610.39825998,0.00026114,2]
[356568973,1742691033068,-610.39825998,0.00026114,2]
[356568974,1742691033078,-610.39825998,0.00026114,2]
[356568975,1742691033087,-610.39825998,0.00026114,2]
[356568976,1742691033096,-610.39825998,0.00026114,2]
[356568977,1742691033106,-610.39825998,0.00026114,2]
[356568978,1742691033115,-610.39825998,0.00026114,2]
[356568979,1742691033125,-610.39825998,0.00026114,2]
[356568980,1742691033134,-610.39825998,0.00026114,2]
[356568981,1742691033144,-268.99959746,0.00026114,2]
[356568982,1742691033156,-341.39866252,0.00026114,2]
[356568983,1742691033166,-610.39825996,0.00026114,2]
[356568984,1742691033175,-610.39825996,0.00026114,2]
[356568985,1742691033186,-610.39825996,0.00026114,2]
[356568986,1742691033195,-610.39825996,0.00026114,2]
[356568987,1742691033205,-610.39825996,0.00026114,2]
[356568988,1742691033215,-610.39825996,0.00026114,2]
[356568989,1742691033226,-610.39825996,0.00026114,2]
[356568990,1742691033235,-610.39825996,0.00026114,2]
[356568991,1742691033245,-610.39825996,0.00026114,2]
[356568992,1742691033254,-610.39825996,0.00026114,2]
[356568993,1742691033264,-610.39825996,0.00026114,2]
[356568994,1742691033274,-610.39825996,0.00026114,2]
[356568995,1742691033283,-610.39825996,0.00026114,2]
[356568996,1742691033293,-610.39825996,0.00026114,2]
[356568997,1742691033303,-610.39825996,0.00026114,2]
[356568998,1742691033313,-610.39825996,0.00026114,2]
[356568999,1742691033323,-610.39825996,0.00026114,2]
[356569000,1742691033333,-610.39825996,0.00026114,2]
[356569001,1742691033343,-610.39825996,0.00026114,2]
[356569002,1742691033352,-610.39825996,0.00026114,2]
[356569003,1742691033362,-610.39825996,0.00026114,2]
[356569004,1742691033372,-610.39825996,0.00026114,2]
[356569005,1742691033382,-610.39825996,0.00026114,2]
[356569006,1742691033392,-610.39825996,0.00026114,2]
[356569007,1742691033404,-610.39825996,0.00026114,2]
[356569008,1742691033417,-610.39825996,0.00026114,2]
[356569009,1742691033430,-610.39825996,0.00026114,2]
[356569010,1742691033439,-1000.0,0.00026123,2]
[356569011,1742691033449,-1000.0,0.00026127,2]
[356569012,1742691033459,-1313.51014074,0.00026141,4]
[356569013,1742691033469,-1313.51014074,0.00026383,4]
[356569014,1742691033479,-1049.04234278,0.000266,4]
[356569015,1742691033488,-1313.51014074,0.00026624,4]
[356569016,1742691033498,-227.26477254,0.00026745,2]
[356569017,1742691033508,-1313.51014074,0.00026866,4]
[356569018,1742691033518,-541.0,0.00026961,2]
[356569019,1742691033527,-1914.0,0.00026961,2]
[356569020,1742691033537,-2264.0,0.00026961,2]
[356569021,1742691033546,-2048.161955,0.00027,2]
[356569022,1742691033555,-1313.51014074,0.00027107,4]
[356569023,1742691033565,-179.82017982,0.00027118,2]
[356569024,1742691033575,-81603.2891245,0.00027257,2]
[356569025,1742691033585,-600.0,0.0002726,2]
[356569026,1742691033594,-136005.481874,0.00027267,2]
[356569027,1742691033604,-113701.36857761,0.00027277,2]
[356569029,1742691038461,-174.03591201,0.00026596,2]
[356569030,1742691038471,-150.0,0.00026961,2]
[356569031,1742691038480,-1197.32967918,0.00027277,2]
[356569262,1742691043626,-174.03591201,0.00027177,2]
[356569263,1742691043636,-40501.60117456,0.00027277,2]
[356569353,1742691934095,-214.39043355,0.00024628,2]
[356569354,1742691934117,-300.0,0.00024686,2]
[356569355,1742691934139,-2.77906932,0.00024687,2]
[356569370,1742692156138,-300.0,0.00024686,2]
[356569371,1742692156161,-12473.03798608,0.00024687,2]
[356569372,1742692156189,-571.29291869,0.00024797,2]
[356569373,1742692156213,-419.05095867,0.00024798,2]
[356569374,1742692156236,-220.57577833,0.00024799,2]
[356569375,1742692156260,-1610.732311,0.00024877,2]
[356569376,1742692156283,-171.83278193,0.00024897,2]
[356569377,1742692156305,-398.99947484,0.00024897,2]
[356569378,1742692156328,-948.17955999,0.00024897,2]
[356569379,1742692156351,-948.17955999,0.00024897,2]
[356569380,1742692156374,-948.17955999,0.00024897,2]
[356569381,1742692156398,-948.17955999,0.00024897,2]
[356569382,1742692156422,-500.0,0.00024897,2]
[356569383,1742692156448,-948.17955999,0.00024897,2]
[356569384,1742692156472,-948.17955999,0.00024897,2]
[356569385,1742692156498,-633.65360944,0.00024897,2]
[356569386,1742692156523,-948.17955999,0.00024897,2]
[356569387,1742692156545,-948.17955999,0.00024897,2]
[356569388,1742692156568,-948.17955999,0.00024897,2]
[356569389,1742692156593,-948.17955999,0.00024897,2]
[356569390,1742692156617,-948.17955999,0.00024897,2]
[356569391,1742692156642,-948.17955999,0.00024897,2]
[356569392,1742692156665,-948.17955999,0.00024897,2]
[356569393,1742692156690,-948.17955999,0.00024897,2]
[356569394,1742692156714,-948.17955999,0.00024897,2]
[356569395,1742692156737,-948.17955999,0.00024897,2]
[356569396,1742692156762,-948.17955999,0.00024897,2]
[356569397,1742692157049,-948.17955999,0.00024897,2]
[356569398,1742692157074,-948.17955999,0.00024897,2]
[356569399,1742692157096,-948.17955999,0.00024897,2]
[356569400,1742692157119,-948.17955999,0.00024897,2]
[356569401,1742692157140,-948.17955999,0.00024897,2]
[356569402,1742692157162,-948.17955999,0.00024897,2]
[356569403,1742692157186,-948.17955999,0.00024897,2]
[356569404,1742692157209,-948.17955999,0.00024897,2]
[356569405,1742692157232,-948.17955999,0.00024897,2]
[356569406,1742692157253,-948.17955999,0.00024897,2]
[356569407,1742692157276,-948.17955999,0.00024897,2]
[356569408,1742692157298,-948.17955999,0.00024897,2]
[356569409,1742692157322,-948.17955999,0.00024897,2]
[356569410,1742692157346,-948.17955999,0.00024897,2]
[356569411,1742692157369,-948.17955999,0.00024897,2]
[356569412,1742692157393,-948.17955999,0.00024897,2]
[356569413,1742692157414,-948.17955999,0.00024897,2]
[356569414,1742692157436,-948.17955999,0.00024897,2]
[356569415,1742692157457,-948.17955999,0.00024897,2]
[356569416,1742692157478,-948.17955999,0.00024897,2]
[356569417,1742692157500,-948.17955999,0.00024897,2]
[356569418,1742692157521,-948.17955999,0.00024897,2]
[356569419,1742692157543,-948.17955999,0.00024897,2]
[356569420,1742692157565,-948.17955999,0.00024897,2]
[356569421,1742692157586,-948.17955999,0.00024897,2]
[356569422,1742692157607,-948.17955999,0.00024897,2]
[356569423,1742692157632,-948.17955999,0.00024897,2]
[356569424,1742692157653,-948.17955999,0.00024897,2]
[356569425,1742692157676,-948.17955999,0.00024897,2]
[356569426,1742692157697,-948.17955999,0.00024897,2]
[356569427,1742692157718,-644.36805178,0.00024897,2]
[356569428,1742692162069,-303.81150821,0.00024897,2]
[356569429,1742692162091,-948.17955999,0.00024897,2]
[356569430,1742692162111,-267.30035494,0.00024897,2]
[356569433,1742692206861,5726.0,0.0001522,120]
[356569455,1742692232677,-600.0,0.00024882,2]
[356569456,1742692232687,-176.89825422,0.00024896,2]
[356569457,1742692232785,-123.10174578,0.00024896,2]
[356569458,1742692232795,-516.5,0.00024896,2]
[356569459,1742692232806,-500.0,0.00024896,2]
[356569460,1742692232816,-500.0,0.00024896,2]
[356569461,1742692232825,-500.0,0.00024896,2]
[356569462,1742692232836,-500.0,0.00024896,2]
[356569463,1742692232846,-500.0,0.00024896,2]
[356569464,1742692232857,-500.0,0.00024896,2]
[356569465,1742692232868,-500.0,0.00024896,2]
[356569466,1742692232878,-860.84,0.00024898,2]
[356569467,1742692232888,-25280.31,0.00024898,2]
[356569468,1742692232898,-6207.78,0.00024898,2]
[356569469,1742692232911,-1894.88,0.00024898,2]
[356569470,1742692232923,-1929.01,0.00024898,2]
[356569471,1742692232934,-500.0,0.00024898,2]
[356569472,1742692232944,-500.0,0.00024898,2]
[356569473,1742692232954,-15654.18,0.00024898,2]
[356569474,1742692232964,-2942.89,0.00024898,2]
[356569475,1742692232974,-2005.03,0.00024898,2]
[356569476,1742692232984,-5338.08967745,0.000249,2]
[356569477,1742692232994,-500.0,0.000249,2]
[356569478,1742692233005,-25293.7279516,0.000249,2]
[356569479,1742692233015,-500.0,0.000249,2]
[356569480,1742692233025,-500.0,0.000249,2]
[356569481,1742692233035,-500.0,0.000249,2]
[356569482,1742692233045,-500.0,0.000249,2]
[356569483,1742692233055,-500.0,0.000249,2]
[356569484,1742692233065,-500.0,0.000249,2]
[356569485,1742692233075,-500.0,0.000249,2]
[356569486,1742692233086,-622.2,0.00024937,2]
[356569487,1742692233095,-257.996889,0.00024946,2]
[356569488,1742692233105,-645.2214,0.00024992,2]
[356569489,1742692233115,-500.78176081,0.00025,2]
[356569490,1742692233124,-207.8860025,0.00025044,2]
[356569491,1742692233135,-669.0945918,0.00025047,2]
[356569492,1742692233144,-693.8510917,0.00025102,2]
[356569493,1742692233154,-992.60016106,0.00025157,2]
[356569494,1742692233164,-516.5,0.0002517,2]
[356569495,1742692233174,-860.84,0.00025172,2]
[356569496,1742692233184,-25280.31,0.00025172,2]
[356569497,1742692233195,-6207.78,0.00025172,2]
[356569498,1742692233210,-1894.88,0.00025172,2]
[356569499,1742692233220,-1929.01,0.00025172,2]
[356569500,1742692233230,-500.0,0.00025172,2]
[356569501,1742692233240,-15654.18,0.00025172,2]
[356569502,1742692233252,-518.12809629,0.00025172,2]
[356569503,1742692233274,-500.0,0.00024896,2]
[356569504,1742692233285,-500.0,0.00024896,2]
[356569505,1742692233296,-2424.76190371,0.00025172,2]
[356569506,1742692233306,-2005.03,0.00025172,2]
[356569507,1742692233316,-516.5,0.00025444,2]
[356569508,1742692233326,-860.84,0.00025446,2]
[356569509,1742692233336,-25280.31,0.00025446,2]
[356569510,1742692233347,-6207.78,0.00025446,2]
[356569511,1742692233357,-1894.88,0.00025446,2]
[356569512,1742692233366,-1929.01,0.00025446,2]
[356569513,1742692233376,-500.0,0.00025446,2]
[356569514,1742692233387,-15654.18,0.00025446,2]
[356569515,1742692233397,-2942.89,0.00025446,2]
[356569516,1742692233407,-2005.03,0.00025446,2]
[356569517,1742692233417,-571.29291866,0.00025517,2]
[356569518,1742692233427,-516.5,0.00025718,2]
[356569519,1742692233437,-860.84,0.0002572,2]
[356569520,1742692233447,-25280.31,0.0002572,2]
[356569521,1742692233458,-6207.78,0.0002572,2]
[356569522,1742692233468,-1894.88,0.0002572,2]
[356569523,1742692233478,-1929.01,0.0002572,2]
[356569524,1742692233489,-500.0,0.0002572,2]
[356569525,1742692233502,-15654.18,0.0002572,2]
[356569526,1742692233513,-2942.89,0.0002572,2]
[356569527,1742692233523,-1122.83530523,0.000259,4]
[356569528,1742692233533,-516.5,0.00025992,2]
[356569529,1742692233543,-18151.44243327,0.00025993,2]
[356569543,1742692238548,-386.01728257,0.00024896,2]
[356569545,1742692238561,-113.98271743,0.00024896,2]
[356569547,1742692238571,-500.0,0.00024896,2]
[356569549,1742692238581,-278.33384959,0.00024896,2]
[356569551,1742692238593,-221.66615041,0.00024896,2]
[356569554,1742692238603,-500.0,0.00024896,2]
[356569556,1742692238614,-500.0,0.00024896,2]
[356569567,1742692238624,-500.0,0.00024896,2]
[356569568,1742692238869,-500.0,0.00024896,2]
[356569569,1742692238879,-500.0,0.00024896,2]
[356569570,1742692238888,-500.0,0.00024896,2]
[356569571,1742692238898,-500.0,0.00024896,2]
[356569572,1742692238907,-500.0,0.00024896,2]
[356569573,1742692238917,-500.0,0.00024896,2]
[356569574,1742692238926,-500.0,0.00024896,2]
[356569575,1742692238935,-500.0,0.00024896,2]
[356569576,1742692238944,-500.0,0.00024896,2]
[356569577,1742692238954,-500.0,0.00024896,2]
[356569578,1742692238963,-500.0,0.00024896,2]
[356569579,1742692238973,-500.0,0.00024896,2]
[356569580,1742692238983,-500.0,0.00024896,2]
[356569581,1742692238994,-319.36181012,0.00024896,2]
[356569582,1742692239006,-180.63818988,0.00024896,2]
[356569583,1742692239016,-500.0,0.00024896,2]
[356569584,1742692239026,-500.0,0.00024896,2]
[356569585,1742692239036,-500.0,0.00024896,2]
[356569586,1742692239045,-500.0,0.00024896,2]
[356569587,1742692239055,-500.0,0.00024896,2]
[356569588,1742692239064,-500.0,0.00024896,2]
[356569589,1742692239073,-500.0,0.00024896,2]
[356569590,1742692239083,-500.0,0.00024896,2]
[356569591,1742692239092,-500.0,0.00024896,2]
[356569592,1742692239102,-500.0,0.00024896,2]
[356569593,1742692239112,-500.0,0.00024896,2]
[356569594,1742692239122,-500.0,0.00024896,2]
[356569595,1742692239133,-500.0,0.00024896,2]
[356569596,1742692239143,-500.0,0.00024896,2]
[356569597,1742692239154,-500.0,0.00024896,2]
[356569598,1742692239164,-500.0,0.00024896,2]
[356569599,1742692239175,-500.0,0.00024896,2]
[356569600,1742692239186,-500.0,0.00024896,2]
[356569601,1742692239197,-500.0,0.00024896,2]
[356569602,1742692239211,-500.0,0.00024896,2]
[356569603,1742692239222,-500.0,0.00024896,2]
[356569604,1742692239232,-500.0,0.00024896,2]
[356569605,1742692239243,-500.0,0.00024896,2]
[356569606,1742692239254,-280.87148428,0.00024896,2]
[356569607,1742692239264,-500.0,0.00024896,2]
[356569608,1742692239275,-500.0,0.00024896,2]
[356569609,1742692239286,-433.07822855,0.00024896,2]
[356569610,1742692239298,-66.92177145,0.00024896,2]
[356569611,1742692239308,-500.0,0.00024896,2]
[356569612,1742692239318,-500.0,0.00024896,2]
[356569613,1742692239328,-500.0,0.00024896,2]
[356569614,1742692239337,-500.0,0.00024896,2]
[356569615,1742692239347,-500.0,0.00024896,2]
[356569616,1742692239356,-146.89785418,0.00024896,2]
[356569617,1742692239368,-353.10214582,0.00024896,2]
[356569618,1742692239378,-500.0,0.00024896,2]
[356569619,1742692239388,-500.0,0.0002517,2]
[356569620,1742692239398,-500.0,0.00025444,2]
[356569621,1742692239407,-500.0,0.00025718,2]
[356569622,1742692239417,-139.98047433,0.0002572,2]
[356569623,1742692239434,-674.62973335,0.0002572,2]
[356569639,1742692241279,-154.5175,0.00024898,2]
[356569643,1742692243724,-279.36730578,0.00024798,2]
[356569644,1742692243735,-500.0,0.00024896,2]
[356569645,1742692243745,-576.6625,0.00024898,2]
[356569646,1742692243758,-500.0,0.0002517,2]
[356569647,1742692243768,-731.18,0.00025172,2]
[356569648,1742692243777,-500.0,0.00025444,2]
[356569649,1742692243788,-731.18,0.00025446,2]
[356569650,1742692243798,-500.0,0.00025718,2]
[356569651,1742692243809,-1190.41979232,0.0002572,2]
[356569652,1742692243818,-731.18,0.0002572,2]
[356569653,1742692243827,-176.46062268,0.00025894,2]
[356569654,1742692243837,-176.46062265,0.0002592,2]
[356569655,1742692243846,-176.46062265,0.00025947,2]
[356569656,1742692243855,-500.0,0.00025992,2]
[356569657,1742692243865,-500.0,0.00025992,2]
[356569658,1742692243875,-7142.28551833,0.00025993,2]
[356569659,1742692243884,-860.84,0.00025994,2]
[356569660,1742692243894,-6667.987455,0.00025994,2]
[356569661,1742692243933,-17143.13757573,0.00025994,2]
[356569666,1742692246723,-352.01713833,0.00024896,2]
[356569667,1742692246778,-188.25286167,0.00024896,2]
[356569668,1742692246790,-500.0,0.00024896,2]
[356569669,1742692246801,-540.27,0.0002517,2]
[356569670,1742692246813,-500.0,0.0002517,2]
[356569671,1742692246825,-540.27,0.00025444,2]
[356569672,1742692246837,-540.27,0.00025718,2]
[356569673,1742692246852,-176.46062265,0.00025973,2]
[356569674,1742692246864,-0.97651566,0.00025992,2]
[356569675,1742692246879,-539.29348434,0.00025992,2]
[356569676,1742692246891,-1469.18496927,0.00025994,2]
[356569677,1742692246903,-6207.78,0.00025994,2]
[356569678,1742692246915,-1894.88,0.00025994,2]
[356569679,1742692246926,-1929.01,0.00025994,2]
[356569680,1742692246936,-500.0,0.00025994,2]
[356569681,1742692246948,-15654.18,0.00025994,2]
[356569682,1742692246959,-2942.89,0.00025994,2]
[356569683,1742692246970,-2005.03,0.00025994,2]
[356569684,1742692246980,-731.18,0.00025994,2]
[356569685,1742692246993,-178.0,0.00026,7]
[356569686,1742692247005,-9848.87,0.00026003,2]
[356569687,1742692247017,-8108.94,0.00026003,2]
[356569688,1742692247028,-2912.4,0.00026003,2]
[356569689,1742692247040,-156.54468883,0.00026003,2]
[356569706,1742692817624,-178.9976,0.00023893,2]
[356569709,1742692929640,-178.9976,0.00023654,2]
[356569710,1742692929666,-29.31189799,0.00023864,2]
[356569718,1742693046980,-157.1510105,0.00021316,2]
[356569720,1742693156087,-51.15848749,0.00021316,2]
[356569721,1742693156109,-257.9968905,0.00023558,2]
[356569722,1742693156131,-311.12053029,0.00023793,2]
[356569726,1742693249098,-300.0,0.00023862,2]
[356569727,1742693249123,-500.0,0.00023863,2]
[356569728,1742693249147,-376.02658795,0.00023863,2]
[356569739,1742693352090,-179.76122721,0.00023625,2]
[356569740,1742693352112,-420.30770161,0.00023793,2]
[356569741,1742693352135,-300.0,0.00023862,2]
[356569742,1742693352307,-123.97341205,0.00023863,2]
[356569743,1742693352329,-500.0,0.00023863,2]
[356569744,1742693352350,-500.0,0.00023863,2]
[356569745,1742693352372,-500.0,0.00023863,2]
[356569746,1742693352394,-500.0,0.00023863,2]
[356569747,1742693352415,-500.0,0.00023863,2]
[356569748,1742693352435,-500.0,0.00023863,2]
[356569749,1742693352457,-500.0,0.00023863,2]
[356569750,1742693352478,-578.08714843,0.00023863,2]
[356569751,1742693352498,-500.0,0.00023863,2]
[356569752,1742693352519,-500.0,0.00023863,2]
[356569753,1742693352539,-500.0,0.00023863,2]
[356569754,1742693352559,-500.0,0.00023863,2]
[356569755,1742693352579,-500.0,0.00023863,2]
[356569756,1742693352600,-500.0,0.00023863,2]
[356569757,1742693352621,-500.0,0.00023863,2]
[356569758,1742693352642,-500.0,0.00023863,2]
[356569759,1742693352662,-500.0,0.00023863,2]
[356569760,1742693352683,-479.05719644,0.00023863,2]
[356569766,1742693369175,-20.94280356,0.00023863,2]
[356569767,1742693369197,-500.0,0.00023863,2]
[356569768,1742693369218,-500.0,0.00023863,2]
[356569769,1742693369239,-500.0,0.00023863,2]
[356569770,1742693369259,-500.0,0.00023863,2]
[356569771,1742693369281,-500.0,0.00023863,2]
[356569772,1742693369303,-500.0,0.00023863,2]
[356569773,1742693369324,-500.0,0.00023863,2]
[356569774,1742693369344,-500.0,0.00023863,2]
[356569775,1742693369365,-500.0,0.00023863,2]
[356569776,1742693369386,-500.0,0.00023863,2]
[356569777,1742693369407,-500.0,0.00023863,2]
[356569778,1742693369428,-244.15142869,0.00023863,2]
[356569779,1742693369448,-681.5,0.00023864,2]
[356569780,1742693369467,-20013.58,0.00023864,2]
[356569781,1742693369487,-4914.49,0.00023864,2]
[356569782,1742693369507,-24870.68810201,0.00023864,2]
[356569783,1742693369528,-1371.2997706,0.00023893,2]
[356569784,1742693369547,-681.5,0.00024138,2]
[356569785,1742693369568,-20013.58,0.00024138,2]
[356569786,1742693369588,-4914.49,0.00024138,2]
[356569787,1742693369608,-681.5,0.00024412,2]
[356569788,1742693369627,-20013.58,0.00024412,2]
[356569789,1742693369647,-3039.44916312,0.00024412,2]
[356569790,1742693370075,-1500.11,0.00023864,2]
[356569791,1742693370095,-1500.11,0.00024138,2]
[356569792,1742693370116,-1875.04083688,0.00024412,2]
[356569793,1742693370136,-1500.11,0.00024412,2]
[356569794,1742693370156,-420.3077016,0.00024562,2]
[356569795,1742693370176,-154.5175,0.00024658,2]
[356569796,1742693370195,-681.5,0.00024686,2]
[356569797,1742693370215,-20013.58,0.00024686,2]
[356569798,1742693370236,-3073.8048779,0.00024686,2]
[356569799,1742693373083,-177.69661252,0.00023793,2]
[356569826,1742693432154,-8.548258,0.00023793,2]
[356569827,1742693432163,-500.0,0.00023863,2]
[356569829,1742693432173,-1527.13,0.00023864,2]
[356569831,1742693432182,-500.0,0.00023864,2]
[356569832,1742693432192,-579.59113357,0.00023864,2]
[356569833,1742693432201,-500.0,0.00023864,2]
[356569834,1742693432210,-12397.25,0.00023864,2]
[356569835,1742693432220,-500.0,0.00023864,2]
[356569836,1742693432228,-506.5739041,0.00023864,2]
[356569837,1742693432238,-500.0,0.00023864,2]
[356569838,1742693432247,-520.21856541,0.00023864,2]
[356569839,1742693432256,-1527.13,0.00024138,2]
[356569840,1742693432265,-500.0,0.00024138,2]
[356569841,1742693432274,-500.0,0.00024138,2]
[356569842,1742693432284,-12397.25,0.00024138,2]
[356569843,1742693432293,-500.0,0.00024138,2]
[356569844,1742693432302,-500.0,0.00024138,2]
[356569845,1742693432311,-186.24487051,0.00024293,2]
[356569846,1742693432320,-1527.13,0.00024412,2]
[356569847,1742693432329,-500.0,0.00024412,2]
[356569848,1742693432338,-500.0,0.00024412,2]
[356569849,1742693432347,-12397.25,0.00024412,2]
[356569850,1742693432357,-500.0,0.00024412,2]
[356569851,1742693432366,-500.0,0.00024412,2]
[356569852,1742693432375,-164.96854235,0.00024651,2]
[356569853,1742693432384,-300.0,0.00024685,2]
[356569854,1742693432393,-1840.6851221,0.00024686,2]
[356569855,1742693432402,-1500.11,0.00024686,2]
[356569856,1742693432411,-1527.13,0.00024686,2]
[356569857,1742693432421,-500.0,0.00024686,2]
[356569858,1742693432430,-500.0,0.00024686,2]
[356569859,1742693432440,-12397.25,0.00024686,2]
[356569860,1742693432449,-500.0,0.00024686,2]
[356569861,1742693432458,-500.0,0.00024686,2]
[356569862,1742693432468,-173.22253951,0.00024792,2]
[356569863,1742693432478,-186.24487051,0.00024792,2]
[356569864,1742693432488,-173.2225395,0.00024795,2]
[356569865,1742693432497,-500.0,0.00024873,2]
[356569866,1742693432508,-571.029023,0.00024873,2]
[356569867,1742693432517,-500.0,0.00024873,2]
[356569868,1742693432526,-500.0,0.00024873,2]
[356569869,1742693432537,-500.0,0.00024873,2]
[356569870,1742693432546,-500.0,0.00024873,2]
[356569871,1742693432557,-500.0,0.00024873,2]
[356569872,1742693432567,-500.0,0.00024873,2]
[356569873,1742693432577,-500.0,0.00024873,2]
[356569874,1742693432589,-196.78293492,0.00024885,2]
[356569875,1742693432600,-402.40171388,0.00024885,2]
[356569876,1742693432611,-2329.79,0.00024892,2]
[356569877,1742693432621,-578.85,0.00024892,2]
[356569878,1742693432631,-1587.31,0.00024892,2]
[356569879,1742693432640,-9438.5,0.00024892,2]
[356569880,1742693432649,-1057.28,0.00024892,2]
[356569881,1742693432658,-2860.11,0.00024892,2]
[356569882,1742693432667,-500.0,0.00024892,2]
[356569883,1742693432677,-7771.07,0.00024892,2]
[356569884,1742693432687,-2791.05,0.00024892,2]
[356569885,1742693432696,-768.51,0.00024892,2]
[356569886,1742693432706,-3309.8,0.00024892,2]
[356569887,1742693432716,-10972.17,0.00024892,2]
[356569888,1742693432725,-1055.63,0.00024892,2]
[356569889,1742693432734,-500.0,0.00024892,2]
[356569890,1742693432744,-30419.02,0.00024892,2]